bitfinex-derivatives/quotes_SOLF0:USTF0_20250609
["timestamp","ask_amount","ask_price","bid_price","bid_amount"]
[1749485022529,1.67428878,155.29,155.26,6.4373]
[1749485022729,2.292,155.3,155.26,31.94]
[1749485023636,0.0467411,155.3,155.27,6.437]
[1749485024138,6.4829411,155.3,155.27,6.437]
[1749485024341,0.0467411,155.3,155.26,38.4211014]
[1749485025042,6.4367,155.29,155.26,38.4211014]
[1749485025342,7.77096772,155.3,155.26,31.9836014]
[1749485025735,6.4373,155.27,155.26,0.0436014]
[1749485026039,7.72422662,155.28,155.23,31.94]
[1749485026242,6.438,155.26,155.23,31.94]
[1749485026642,7.72422662,155.28,155.23,31.94]
[1749485027143,0.04560944,155.27,155.24,0.04466493]
[1749485027640,6.48310944,155.27,155.24,6.48296493]
[1749485028844,6.4378,155.26,155.24,0.04466493]
[1749485029348,6.4378,155.26,155.24,6.48306493]
[1749485031039,6.4378,155.26,155.24,0.04466493]
[1749485031541,6.4378,155.26,155.24,6.48306493]
[1749485033540,6.4381,155.25,155.24,0.04466493]
[1749485034247,11.76304142,155.25,155.24,0.04466493]
[1749485034845,6.4385,155.24,155.23,31.94]
[1749485035040,5.32494142,155.24,155.21,6.4397]
[1749485035348,5.32494142,155.23,155.21,6.4397]
[1749485035546,6.4392,155.23,155.21,6.4397]
[1749485037350,5.33329916,155.22,155.21,6.4397]
[1749485037545,6.4392,155.23,155.21,6.4397]
[1749485040054,0.0468322,155.24,155.2,31.9830937]
[1749485040351,5.33800616,155.23,155.2,31.9830937]
[1749485040553,6.439,155.23,155.2,38.4231937]
[1749485040758,7.77105882,155.24,155.2,38.4231937]
[1749485040955,5.33809199,155.23,155.2,38.4231937]
[1749485041150,7.77105882,155.24,155.2,38.4231937]
[1749485041352,6.4394,155.22,155.2,38.4231937]
[1749485042251,11.77358928,155.23,155.21,6.4397]
[1749485042453,6.4391,155.23,155.21,6.4397]
[1749485042853,6.4391,155.23,155.2,38.4230937]
[1749485043055,6.4394,155.22,155.2,38.4230937]
[1749485043259,6.4394,155.22,155.2,31.9830937]
[1749485043450,7.77105882,155.24,155.2,31.9830937]
[1749485043750,5.33268895,155.23,155.2,31.9830937]
[1749485043961,5.33252483,155.22,155.2,31.9830937]
[1749485044151,7.72422662,155.22,155.1,12.8884]
[1749485044353,5.33215999,155.21,155.16,31.94]
[1749485044552,7.72422662,155.22,155.16,31.94]
[1749485044756,7.72422662,155.22,155.16,39.66422662]
[1749485045151,7.72422662,155.2,155.17,0.04525083]
[1749485045659,7.72422662,155.18,155.17,0.04525083]
[1749485046457,7.72422662,155.2,155.17,0.04525083]
[1749485046757,5.32520525,155.19,155.17,0.04525083]
[1749485047460,14.16472662,155.2,155.17,0.04525083]
[1749485047961,7.72422662,155.2,155.17,6.48645083]
[1749485048356,0.04757106,155.21,155.17,0.04525083]
[1749485049164,0.04757106,155.21,155.2,6.4402]
[1749485057357,0.04757106,155.21,155.2,14.16442662]
[1749485057561,14.0,155.25,155.24,6.4385]
[1749485057761,14.0,155.25,155.17,32.00525083]
[1749485057762,5.30548572,155.25,155.22,7.72422662]
[1749485057959,5.30548572,155.26,155.22,7.72422662]
[1749485058155,20.4372,155.28,155.22,7.72422662]
[1749485058469,9.53472032,155.27,155.22,7.72422662]
[1749485058765,5.35761545,155.26,155.23,0.04642099]
[1749485058962,0.04753028,155.26,155.23,0.04642099]
[1749485059263,0.04753028,155.26,155.25,6.4381]
[1749485059859,0.04753028,155.26,155.25,38.3781]
[1749485061464,5.31199919,155.3,155.29,6.4364]
[1749485061971,5.31199919,155.32,155.27,7.72422662]
[1749485062161,5.31199919,155.31,155.3,6.436]
[1749485064377,5.31199919,155.31,155.29,6.48050178]
[1749485064867,5.31199919,155.31,155.29,0.04420178]
[1749485065170,5.31199919,155.31,155.3,6.436]
[1749485065368,0.0464348,155.32,155.29,7.7684284]
[1749485065567,0.0464348,155.32,155.31,6.4356]
[1749485068565,0.0464348,155.32,155.3,6.436]
[1749485068772,6.4356,155.31,155.29,0.04420178]
[1749485068967,5.37027601,155.32,155.29,0.04420178]
[1749485069472,6.4819348,155.32,155.29,0.04420178]
[1749485069873,5.32062358,155.31,155.29,0.04420178]
[1749485070166,6.4819348,155.32,155.29,0.04420178]
[1749485070371,6.4819348,155.32,155.29,6.48050178]
[1749485070569,0.0464348,155.32,155.29,6.48050178]
[1749485070874,5.36647777,155.32,155.29,0.04420178]
[1749485071074,6.4818348,155.32,155.29,0.04420178]
[1749485071278,5.32004297,155.31,155.29,0.04420178]
[1749485071471,7.77066142,155.32,155.29,0.04420178]
[1749485071672,11.78310703,155.31,155.29,0.04420178]
[1749485074578,6.436,155.3,155.29,0.04420178]
[1749485074771,13.07143365,155.3,155.24,7.72422662]
[1749485074973,13.07143365,155.3,155.23,31.94]
[1749485074974,19.34708177,155.29,155.23,31.94]
[1749485075174,5.34735275,155.28,155.22,39.66422662]
[1749485075576,6.4375,155.27,155.24,6.4383]
[1749485075775,6.47842643,155.27,155.24,6.48171776]
[1749485076477,0.04092643,155.27,155.26,7.72422662]
[1749485076984,0.04092643,155.27,155.26,14.16192662]
[1749485078177,0.04092643,155.27,155.26,46.10192662]
[1749485078378,5.34331804,155.32,155.3,6.436]
[1749485078578,5.34331804,155.32,155.26,39.66422662]
[1749485078979,6.4352,155.32,155.28,6.4368]
[1749485079177,11.77734801,155.32,155.28,6.4368]
[1749485079376,11.82086271,155.32,155.28,6.47967514]
[1749485079586,6.4787147,155.32,155.29,6.4364]
[1749485079785,7.76774132,155.32,155.28,0.04287514]
[1749485079985,5.34198953,155.31,155.28,0.04287514]
[1749485080385,6.4363,155.3,155.28,0.04287514]
[1749485081083,6.4364,155.29,155.28,0.04287514]
[1749485086585,7.72422662,155.3,155.28,0.04287514]
[1749485086784,16.2874,155.31,155.28,0.04287514]
[1749485087091,22.7233,155.31,155.28,0.04287514]
[1749485087289,7.72422662,155.3,155.28,0.04287514]
[1749485087684,6.4364,155.29,155.28,0.04287514]
[1749485088087,11.77872126,155.29,155.28,0.04287514]
[1749485088983,6.4364,155.29,155.28,0.04287514]
[1749485090793,11.77953728,155.29,155.28,0.04287514]
[1749485092591,16.07983756,155.29,155.28,0.04287514]
[1749485092791,11.77953728,155.29,155.28,0.04287514]
[1749485093296,5.34313728,155.29,155.28,0.04287514]
[1749485093500,16.2874,155.31,155.28,0.04287514]
[1749485094496,14.0,155.31,155.28,0.04287514]
[1749485094894,14.0,155.31,155.29,6.4362]
[1749485095296,20.4357,155.31,155.29,6.4362]
[1749485095697,6.4357,155.31,155.29,6.4362]
[1749485096294,6.4790147,155.32,155.29,6.4362]
[1749485096602,5.35461561,155.31,155.29,6.4362]
[1749485096792,6.4790147,155.32,155.29,6.4362]
[1749485096992,5.35433431,155.31,155.3,6.436]
[1749485097596,9.66387343,155.31,155.3,6.436]
[1749485098300,9.66431249,155.31,155.3,6.436]
[1749485098598,5.35433431,155.31,155.3,6.436]
[1749485099296,9.66875248,155.31,155.3,6.436]
[1749485099600,5.35433431,155.31,155.3,6.436]
[1749485099801,9.66875017,155.31,155.3,6.436]
[1749485100006,9.67266474,155.31,155.3,6.436]
[1749485100501,9.6726477,155.31,155.3,6.436]
[1749485100702,5.35433431,155.31,155.3,6.436]
[1749485101097,0.0435147,155.32,155.31,6.4356]
[1749485101400,9.7233604,155.32,155.31,6.4356]
[1749485101801,9.73207906,155.32,155.31,6.4356]
[1749485102002,9.73206762,155.32,155.31,6.4356]
[1749485102391,5.405129,155.32,155.31,6.4356]
[1749485102797,5.405129,155.32,155.31,14.15982662]
[1749485103001,9.74096866,155.32,155.31,46.11982662]
[1749485103202,0.0435147,155.32,155.31,46.11982662]
[1749485103403,5.40914757,155.32,155.31,46.11982662]
[1749485103606,5.98987599,155.37,155.35,6.4338]
[1749485103905,9.70414139,155.36,155.35,6.4338]
[1749485104108,9.70413493,155.36,155.35,6.4338]
[1749485105105,9.71030235,155.36,155.34,0.04095966]
[1749485105402,16.14433452,155.35,155.34,0.04095966]
[1749485105605,16.14433451,155.35,155.34,0.04095966]
[1749485105997,5.36394044,155.35,155.34,0.04095966]
[1749485106302,5.37536653,155.35,155.34,38.43535966]
[1749485106701,5.37536653,155.35,155.34,0.04095966]
[1749485106900,9.71699394,155.35,155.34,0.04095966]
[1749485107099,5.37536653,155.35,155.34,0.04095966]
[1749485107407,16.15102644,155.35,155.34,0.04095966]
[1749485107702,11.80936653,155.35,155.34,0.04095966]
[1749485107903,16.16883989,155.35,155.34,0.04095966]
[1749485108103,9.73483989,155.35,155.34,0.04095966]
[1749485108499,9.73784994,155.35,155.34,0.04095966]
[1749485109005,9.73784718,155.35,155.34,0.04095966]
[1749485109204,9.73784465,155.35,155.34,0.04095966]
[1749485109405,5.37536653,155.35,155.34,0.04095966]
[1749485109608,9.73784443,155.35,155.34,0.04095966]
[1749485109999,5.37536653,155.35,155.34,6.47535966]
[1749485110605,9.74516063,155.35,155.34,0.04095966]
[1749485110805,16.17917744,155.35,155.34,0.04095966]
[1749485111211,11.80936653,155.35,155.34,0.04095966]
[1749485111504,9.74517313,155.35,155.34,0.04095966]
[1749485111809,0.04279426,155.37,155.34,0.04095966]
[1749485112107,5.36922752,155.36,155.34,0.04095966]
[1749485112308,0.04279426,155.37,155.35,6.4339]
[1749485112504,5.36910024,155.36,155.35,6.4339]
[1749485112703,0.04279426,155.37,155.35,6.4339]
[1749485112906,10.84431944,155.37,155.35,6.4339]
[1749485113210,5.36770799,155.36,155.34,6.47525966]
[1749485113509,0.04279426,155.37,155.34,6.47525966]
[1749485113808,5.36739753,155.36,155.34,6.47525966]
[1749485114008,0.04279426,155.37,155.34,6.47525966]
[1749485114210,5.36636103,155.36,155.34,6.47525966]
[1749485114409,0.04279426,155.37,155.34,6.47525966]
[1749485114610,5.3661823,155.36,155.34,6.47525966]
[1749485114809,6.4336,155.36,155.34,6.47525966]
[1749485115900,6.47619426,155.37,155.34,6.47525966]
[1749485116099,5.36364265,155.36,155.34,6.47525966]
[1749485116312,6.47619426,155.37,155.34,6.47525966]
[1749485116501,5.36361523,155.36,155.34,6.47525966]
[1749485116807,6.4337,155.36,155.34,6.47525966]
[1749485117414,6.4341,155.35,155.34,0.04095966]
[1749485117710,11.79757076,155.35,155.34,0.04095966]
[1749485117911,6.4341,155.35,155.34,0.04095966]
[1749485118113,11.79757076,155.35,155.34,0.04095966]
[1749485118406,6.4341,155.35,155.34,0.04095966]
[1749485118606,11.79757076,155.35,155.34,0.04095966]
[1749485118807,6.4341,155.35,155.34,0.04095966]
[1749485119012,11.79757076,155.35,155.34,0.04095966]
[1749485119212,11.79727076,155.36,155.34,0.04095966]
[1749485119511,0.04279426,155.37,155.34,6.47545966]
[1749485119711,5.36203438,155.36,155.34,6.47545966]
[1749485119912,11.79573438,155.36,155.34,6.47545966]
[1749485120111,6.4337,155.36,155.34,0.04095966]
[1749485120707,6.4337,155.36,155.34,6.47525966]
[1749485120906,6.47609426,155.37,155.34,0.04095966]
[1749485121102,5.36364151,155.36,155.34,0.04095966]
[1749485121310,5.36364151,155.36,155.35,6.4341]
[1749485122911,0.04279426,155.37,155.34,0.04095966]
[1749485123318,6.47609426,155.37,155.34,0.04095966]
[1749485124518,0.04279426,155.37,155.35,6.4339]
[1749485126713,6.47609426,155.37,155.35,6.4339]
[1749485127712,0.04279426,155.37,155.35,6.4339]
[1749485127918,0.04279426,155.37,155.36,6.4337]
[1749485128618,0.04279426,155.37,155.35,6.4339]
[1749485129321,9.78093106,155.37,155.34,38.59525966]
[1749485129514,5.3648647,155.36,155.34,38.59525966]
[1749485130017,5.3648647,155.36,155.35,6.4341]
[1749485130411,6.47629426,155.37,155.35,6.4341]
[1749485130917,0.04279426,155.37,155.36,6.4337]
[1749485131617,5.41146097,155.37,155.36,6.4337]
[1749485131819,0.04279426,155.37,155.36,6.4337]
[1749485132018,5.41146097,155.37,155.36,6.4337]
[1749485133027,0.04279426,155.37,155.36,6.4337]
[1749485133427,0.04279426,155.37,155.35,6.4339]
[1749485133828,5.41400623,155.37,155.35,6.4339]
[1749485134223,0.04279426,155.37,155.35,6.4339]
[1749485134430,0.04279426,155.37,155.36,6.4337]
[1749485134727,5.41491093,155.37,155.36,6.4337]
[1749485134928,5.41491093,155.37,155.35,6.4339]
[1749485135127,0.04279426,155.37,155.35,6.4339]
[1749485135327,0.04279426,155.37,155.34,39.88518628]
[1749485135723,0.04279426,155.37,155.36,6.4337]
[1749485135924,5.41885697,155.37,155.36,6.4337]
[1749485137333,5.41885697,155.37,155.34,39.88518628]
[1749485137628,5.37606271,155.36,155.34,39.88518628]
[1749485137821,0.04279426,155.37,155.34,39.88518628]
[1749485138023,0.04279426,155.37,155.36,6.4337]
[1749485138219,9.81179746,155.37,155.36,6.4337]
[1749485138627,9.81104008,155.37,155.36,6.4337]
[1749485139332,9.81103323,155.37,155.36,6.4337]
[1749485139532,9.81103345,155.37,155.36,6.4337]
[1749485139935,9.81103345,155.37,155.34,0.04095966]
[1749485140230,9.76823919,155.36,155.34,0.04095966]
[1749485140432,9.76823919,155.35,155.34,0.04095966]
[1749485140835,16.20669105,155.35,155.34,0.04095966]
[1749485141334,16.20669105,155.35,155.34,6.47545966]
[1749485141335,9.77259105,155.35,155.34,6.47545966]
[1749485142236,5.38007769,155.35,155.34,6.47545966]
[1749485142533,9.77259119,155.35,155.34,0.04095966]
[1749485142732,5.38007769,155.35,155.34,0.04095966]
[1749485142935,9.77820148,155.35,155.34,0.04095966]
[1749485144135,9.77285856,155.35,155.34,0.04095966]
[1749485144338,5.38007769,155.35,155.34,0.04095966]
[1749485144735,16.20695856,155.35,155.34,0.04095966]
[1749485144933,11.81417769,155.35,155.34,0.04095966]
[1749485145231,16.2069696,155.35,155.34,0.04095966]
[1749485145538,9.78226368,155.35,155.34,0.04095966]
[1749485145725,9.78226368,155.35,155.34,6.47545966]
[1749485145930,5.38947177,155.35,155.34,6.47545966]
[1749485146134,9.78056541,155.35,155.34,6.47545966]
[1749485146434,9.78056541,155.35,155.34,0.04095966]
[1749485146638,9.78057093,155.35,155.34,0.04095966]
[1749485147637,9.77634418,155.35,155.34,0.04095966]
[1749485147837,16.21044418,155.35,155.34,0.04095966]
[1749485148432,6.4351,155.33,155.3,6.4361]
[1749485148638,9.77634418,155.32,155.29,39.70422662]
[1749485148830,6.01832105,155.35,155.29,39.70422662]
[1749485149031,16.21048094,155.34,155.29,39.70422662]
[1749485149237,9.77578094,155.33,155.29,39.70422662]
[1749485149436,9.77578094,155.32,155.29,39.75097188]
[1749485149636,0.04404002,155.33,155.29,39.75097188]
[1749485149841,5.38846012,155.32,155.31,14.15992662]
[1749485150041,0.04404002,155.33,155.31,7.72422662]
[1749485150435,0.04404002,155.33,155.32,6.4353]
[1749485150629,9.81892154,155.33,155.32,6.4353]
[1749485151439,9.81865086,155.33,155.32,6.4353]
[1749485151637,9.81865925,155.33,155.32,6.4353]
[1749485152738,9.81652479,155.33,155.32,6.4353]
[1749485153341,5.43357042,155.33,155.32,6.4353]
[1749485154039,5.43077631,155.33,155.32,6.4353]
[1749485154238,0.04404002,155.33,155.32,6.4353]
[1749485154644,5.43103911,155.33,155.32,6.4353]
[1749485154840,5.43097603,155.33,155.32,6.4353]
[1749485155040,0.04404002,155.33,155.32,6.4353]
[1749485155239,5.43103911,155.33,155.32,6.4353]
[1749485158846,5.43103911,155.33,155.32,38.4153]
[1749485160949,5.43653656,155.33,155.32,38.4153]
[1749485161345,5.43653656,155.33,155.32,43.34512984]
[1749485168153,9.81725894,155.33,155.32,43.34512984]
[1749485168552,9.81713902,155.33,155.32,43.34512984]
[1749485169352,9.81584876,155.33,155.32,43.34512984]
[1749485169550,5.43653656,155.33,155.32,43.34512984]
[1749485170153,0.04404002,155.33,155.32,43.34512984]
[1749485170857,5.43664297,155.33,155.32,43.34512984]
[1749485171553,0.04404002,155.33,155.32,43.34512984]
[1749485172249,6.02073918,155.37,155.36,6.4337]
[1749485172456,9.7716361,155.37,155.36,11.36352984]
[1749485173151,9.7715097,155.37,155.36,11.36352984]
[1749485173860,5.39242499,155.37,155.36,11.36352984]
[1749485174059,14.70082268,155.37,155.35,6.48207523]
[1749485174259,20.72156186,155.36,155.32,31.98]
[1749485174460,9.77095566,155.35,155.33,4.92982984]
[1749485174657,9.77094758,155.34,155.33,11.36442984]
[1749485174857,9.77093928,155.34,155.33,11.36442984]
[1749485175057,9.77092267,155.34,155.33,11.36442984]
[1749485175259,5.39242499,155.34,155.33,11.36442984]
[1749485175459,9.77092957,155.34,155.33,11.36442984]
[1749485175653,9.77095172,155.34,155.33,11.36442984]
[1749485175959,9.77095172,155.34,155.32,11.40730065]
[1749485176156,5.39242499,155.33,155.32,6.47747081]
[1749485176357,9.77126016,155.33,155.32,6.47747081]
[1749485176559,9.77126083,155.33,155.32,6.47747081]
[1749485176754,5.39242499,155.33,155.32,6.47747081]
[1749485176954,9.77127096,155.33,155.32,6.47747081]
[1749485177360,9.77127096,155.33,155.32,0.04217081]
[1749485177958,10.32225483,155.33,155.28,36.84982984]
[1749485178156,4.92982984,155.3,155.25,402.52]
[1749485178361,5.39242499,155.29,155.27,4.92982984]
[1749485178561,14.0,155.32,155.28,4.92982984]
[1749485178764,9.78279053,155.31,155.3,4.92982984]
[1749485178959,9.78279053,155.31,155.3,11.36592984]
[1749485179362,5.39938684,155.31,155.3,11.36592984]
[1749485179860,9.77739556,155.31,155.3,6.4361]
[1749485180061,5.39938684,155.31,155.3,6.4361]
[1749485180261,9.77740676,155.31,155.3,6.4361]
[1749485181161,9.7780794,155.31,155.3,6.4361]
[1749485181356,9.77665896,155.31,155.3,6.4361]
[1749485181565,9.77665095,155.31,155.3,11.36592984]
[1749485181755,9.77664554,155.31,155.3,11.36592984]
[1749485181955,9.77664554,155.31,155.3,6.4361]
[1749485182861,9.77193863,155.31,155.3,6.4361]
[1749485183264,9.77193863,155.31,155.29,6.47749011]
[1749485183561,5.40005948,155.3,155.29,6.47749011]
[1749485183759,14.70195609,155.3,155.27,6.4371]
[1749485183956,4.92982984,155.28,155.25,31.92]
[1749485184158,9.77212625,155.29,155.25,31.92]
[1749485184159,11.36662984,155.29,155.26,4.92982984]
[1749485184357,5.35300052,155.28,155.27,6.4374]
[1749485186855,11.79000052,155.28,155.26,11.41578749]
[1749485187055,4.97920695,155.29,155.26,4.97808749]
[1749485187255,4.97920695,155.29,155.26,0.04825765]
[1749485187256,5.35123722,155.28,155.26,0.04825765]
[1749485187467,0.04937711,155.29,155.28,6.437]
[1749485187765,9.73502314,155.29,155.28,6.437]
[1749485188367,11.83738248,155.29,155.26,0.04825765]
[1749485188566,5.35120537,155.28,155.26,0.04825765]
[1749485188764,6.48617711,155.29,155.26,0.04825765]
[1749485188965,5.34965527,155.28,155.26,0.04825765]
[1749485189165,6.48617711,155.29,155.26,0.04825765]
[1749485189361,5.35096699,155.28,155.26,6.48585765]
[1749485189559,6.48617711,155.29,155.26,6.48585765]
[1749485189764,5.35110298,155.28,155.26,6.48585765]
[1749485190064,6.48617711,155.29,155.26,6.48585765]
[1749485190265,5.34977068,155.28,155.26,6.48585765]
[1749485190564,6.48617711,155.29,155.26,6.48585765]
[1749485190765,5.34407295,155.28,155.26,6.48585765]
[1749485190956,6.48617711,155.29,155.26,6.48585765]
[1749485191159,5.34409385,155.28,155.27,6.4372]
[1749485191356,0.04937711,155.29,155.26,0.04825765]
[1749485192464,0.04937711,155.29,155.27,6.437]
[1749485193257,6.48597711,155.29,155.27,6.437]
[1749485193458,6.48597711,155.29,155.26,6.48585765]
[1749485194563,0.04937711,155.29,155.27,6.4373]
[1749485194762,5.3866741,155.29,155.27,6.4373]
[1749485194959,0.04937711,155.29,155.27,6.4373]
[1749485195169,5.38630327,155.29,155.27,6.4373]
[1749485195370,0.04937711,155.29,155.27,6.4373]
[1749485195673,6.48597711,155.29,155.27,6.4373]
[1749485196266,0.04937711,155.29,155.27,6.4373]
[1749485196471,5.38326218,155.29,155.27,6.4373]
[1749485197772,5.38326218,155.29,155.26,0.04825765]
[1749485198173,0.04937711,155.29,155.26,0.04825765]
[1749485198569,0.04937711,155.29,155.28,6.437]
[1749485201574,0.04937711,155.29,155.28,5.16092174]
[1749485205574,5.39044811,155.29,155.26,0.04825765]
[1749485205976,5.39044811,155.29,155.28,6.437]
[1749485206379,5.39044811,155.29,155.27,6.4373]
[1749485206566,0.04937711,155.29,155.27,6.4373]
[1749485206770,5.39083777,155.29,155.27,6.4373]
[1749485207272,0.04937711,155.29,155.27,6.4373]
[1749485207778,0.04937711,155.29,155.26,0.04825765]
[1749485207779,5.34327745,155.28,155.26,6.48585765]
[1749485208178,7.7603878,155.29,155.26,6.48585765]
[1749485208377,5.34344131,155.28,155.27,6.4374]
[1749485215279,10.27849295,155.28,155.27,6.4374]
[1749485216580,0.04937711,155.29,155.28,6.437]
[1749485216775,5.38341791,155.29,155.28,6.437]
[1749485216975,0.04937711,155.29,155.28,6.437]
[1749485217480,0.04937711,155.29,155.28,11.37205164]
[1749485217680,0.04937711,155.29,155.28,6.437]
[1749485218283,5.3878887,155.29,155.28,11.37205164]
[1749485218782,0.04937711,155.29,155.28,11.37205164]
[1749485219383,0.04937711,155.29,155.28,6.437]
[1749485223679,7.711e-05,155.29,155.28,6.437]
[1749485227187,8.32884596,155.36,155.35,6.4341]
[1749485227390,13.69673258,155.36,155.35,6.4341]
[1749485227584,18.02808243,155.36,155.31,7.70711822]
[1749485227793,9.70815293,155.35,155.34,6.4341]
[1749485229088,9.7072047,155.35,155.34,6.4341]
[1749485229283,9.70720117,155.35,155.34,6.4341]
[1749485229591,5.36788662,155.35,155.34,6.4341]
[1749485229889,0.04309059,155.36,155.35,6.4341]
[1749485230090,5.40781932,155.36,155.35,6.4341]
[1749485230390,9.74649699,155.36,155.35,6.4341]
[1749485230789,9.74347048,155.36,155.35,6.4341]
[1749485230991,5.40781932,155.36,155.35,6.4341]
[1749485231182,5.40781932,155.36,155.33,7.75408844]
[1749485231381,0.04309059,155.36,155.33,7.75408844]
[1749485231789,0.04309059,155.36,155.35,6.4341]
[1749485231988,9.74876777,155.36,155.35,6.4341]
[1749485232189,5.41311366,155.36,155.35,6.4341]
[1749485232390,0.04309059,155.36,155.35,6.4341]
[1749485232986,5.41118148,155.36,155.35,6.4341]
[1749485233187,0.04309059,155.36,155.35,6.4341]
[1749485241307,0.04309059,155.36,155.35,11.36279392]
[1749485242510,18.92869392,155.41,155.39,6.4321]
[1749485243005,4.92869392,155.4,155.37,4.92869392]
[1749485243206,4.92869392,155.4,155.38,6.4326]
[1749485244007,4.92869392,155.4,155.37,6.48158504]
[1749485245511,4.92869392,155.4,155.38,6.4328]
[1749485246109,11.36069392,155.4,155.38,6.4328]
[1749485246314,4.92869392,155.39,155.37,6.48158504]
[1749485249204,6.4327,155.39,155.37,0.04848504]
[1749485249408,4.92869392,155.4,155.37,0.04848504]
[1749485250013,6.4326,155.39,155.37,0.04848504]
[1749485251516,6.4326,155.39,155.37,6.48168504]
[1749485251818,11.36089392,155.4,155.37,6.48168504]
[1749485255321,11.36089392,155.4,155.38,6.4327]
[1749485258426,4.92869392,155.4,155.38,6.4327]
[1749485258628,27.71348868,155.41,155.38,6.4327]
[1749485259129,27.71348868,155.41,155.39,6.4324]
[1749485260628,27.71348868,155.41,155.38,6.4326]
[1749485260933,4.92869392,155.4,155.38,6.4326]
[1749485261132,10.30582119,155.4,155.38,6.4326]
[1749485261526,4.92869392,155.4,155.38,6.4326]
[1749485262627,10.30755821,155.4,155.38,6.4326]
[1749485262933,4.92869392,155.4,155.38,6.4326]
[1749485263129,11.36069392,155.4,155.38,6.4326]
[1749485265833,11.36069392,155.4,155.37,6.48148504]
[1749485266024,4.92869392,155.39,155.37,6.48148504]
[1749485267535,11.36069392,155.4,155.37,6.48148504]
[1749485267735,5.38468978,155.39,155.37,6.48148504]
[1749485267933,11.36069392,155.4,155.37,6.48148504]
[1749485268132,5.38468809,155.39,155.37,6.48148504]
[1749485268333,11.36069392,155.4,155.37,6.48148504]
[1749485268536,5.38677003,155.39,155.37,6.48148504]
[1749485268734,11.36069392,155.4,155.38,6.4328]
[1749485268936,5.38676023,155.39,155.38,6.4328]
[1749485269436,5.38676023,155.39,155.37,0.04848504]
[1749485269437,5.38676023,155.39,155.37,6.48148504]
[1749485269637,11.36069392,155.4,155.37,0.04848504]
[1749485269838,5.38813223,155.39,155.37,0.04848504]
[1749485270038,11.36069392,155.4,155.37,0.04848504]
[1749485270340,5.38969355,155.39,155.37,0.04848504]
[1749485270535,16.35299476,155.41,155.37,4.97717896]
[1749485270731,9.78452834,155.4,155.38,4.92869392]
[1749485271037,5.38931036,155.39,155.38,11.36149392]
[1749485273341,5.38931036,155.39,155.38,6.4328]
[1749485273537,9.79726616,155.39,155.38,6.4328]
[1749485273734,5.38931036,155.39,155.38,6.4328]
[1749485274234,9.79902714,155.39,155.38,6.4328]
[1749485274534,9.79902692,155.39,155.38,6.4328]
[1749485274738,9.79903519,155.39,155.38,6.4328]
[1749485275639,9.79848969,155.39,155.38,6.4328]
[1749485275836,9.7985002,155.39,155.38,6.4328]
[1749485276139,4.97478868,155.41,155.39,6.4322]
[1749485276332,5.39829128,155.4,155.39,6.4322]
[1749485276528,9.80746506,155.4,155.39,6.4322]
[1749485276929,5.39829128,155.4,155.39,6.4322]
[1749485277236,9.8074597,155.4,155.38,6.4327]
[1749485277434,9.8074597,155.39,155.38,6.4327]
[1749485277637,9.80987563,155.39,155.38,6.4327]
[1749485277840,5.39829128,155.39,155.38,6.4327]
[1749485278039,9.80986488,155.39,155.38,6.4327]
[1749485278241,9.8098649,155.39,155.37,6.48148504]
[1749485278435,11.36079392,155.4,155.37,6.48148504]
[1749485278633,9.81322758,155.39,155.37,6.48148504]
[1749485278840,11.36079392,155.4,155.37,6.48148504]
[1749485279042,9.81815694,155.39,155.37,6.48148504]
[1749485279341,5.40165888,155.38,155.37,6.48148504]
[1749485279533,11.36079392,155.4,155.37,6.48148504]
[1749485279738,9.81949221,155.39,155.37,6.48148504]
[1749485279947,11.36079392,155.4,155.37,6.48148504]
[1749485280245,9.81959593,155.39,155.38,6.4328]
[1749485280746,9.82222876,155.39,155.38,6.4328]
[1749485280938,5.40309773,155.39,155.37,11.41017896]
[1749485281139,5.40485656,155.38,155.37,4.97717896]
[1749485282447,5.40485656,155.38,155.37,11.41037896]
[1749485282843,11.40658868,155.41,155.37,4.97717896]
[1749485283139,5.40473014,155.4,155.38,6.4326]
[1749485283341,5.40473014,155.39,155.38,6.4326]
[1749485283547,9.82106425,155.39,155.38,6.4326]
[1749485284345,9.8144007,155.39,155.38,6.4326]
[1749485284543,9.8144007,155.39,155.38,11.36129392]
[1749485285147,5.40473014,155.39,155.38,11.36129392]
[1749485285447,9.81439528,155.39,155.38,11.36129392]
[1749485286042,9.81388018,155.39,155.38,6.4326]
[1749485286236,5.40473014,155.39,155.38,6.4326]
[1749485286548,9.81387997,155.39,155.38,6.4326]
[1749485286747,9.81388152,155.39,155.38,6.4326]
[1749485286948,9.81388131,155.39,155.38,6.4326]
[1749485287148,9.81388131,155.39,155.37,11.41017896]
[1749485287347,5.40473014,155.38,155.37,6.48148504]
[1749485291755,9.81791677,155.38,155.37,6.48148504]